[Event "2026 Biel Blitz Open"]
[Site "Biel, CH"]
[Date "2026.07.19"]
[Round "10"]
[White "Damen, Josephine"]
[Black "Havolli, Daut"]
[Result "1/2-1/2"]
[Board "36"]
[TimeControl "180+2"]
[WhiteFideId "1074369"]
[BlackFideId "1315200"]
[WhiteElo "1766"]
[BlackElo "1950"]
[WhiteTitle "WCM"]
[WhiteClock "0:00:13"]
[BlackClock "0:00:07"]
[Variant "Standard"]
[EndDate "2026.07.19"]
[EndTime "14:59:09"]

1. e4 {[%clk 0:03:03]}  c6 {[%clk 0:03:03]} 2. d4 {[%clk 0:03:04]}  d5 {[%clk 0:03:04]} 3. exd5 {[%clk 0:03:05]}  cxd5 {[%clk 0:03:05]}
4. c4 {[%clk 0:03:05]}  Nc6 {[%clk 0:02:56]} 5. Nf3 {[%clk 0:03:06]}  Bg4 {[%clk 0:02:56]} 6. Be3 {[%clk 0:03:01]}  Nf6 {[%clk 0:02:55]}
7. Nc3 {[%clk 0:03:02]}  e6 {[%clk 0:02:56]} 8. c5 {[%clk 0:03:03]}  Be7 {[%clk 0:02:56]} 9. Bb5 {[%clk 0:03:01]}  O-O {[%clk 0:02:56]}
10. O-O {[%clk 0:02:57]}  a6 {[%clk 0:02:45]} 11. Bxc6 {[%clk 0:02:34]}  bxc6 {[%clk 0:02:46]} 12. h3 {[%clk 0:02:12]}  Bh5 {[%clk 0:02:46]}
13. g4 {[%clk 0:02:03]}  Bg6 {[%clk 0:02:36]} 14. Ne5 {[%clk 0:01:58]}  Qc7 {[%clk 0:02:30]} 15. Bf4 {[%clk 0:01:55]}  Qb7 {[%clk 0:02:24]}
16. Na4 {[%clk 0:01:42]}  Nd7 {[%clk 0:02:16]} 17. Nxd7 {[%clk 0:01:37]}  Qxd7 {[%clk 0:02:13]} 18. Nb6 {[%clk 0:01:38]}  Qb7 {[%clk 0:02:14]}
19. Nxa8 {[%clk 0:01:35]}  Rxa8 {[%clk 0:02:15]} 20. Qd2 {[%clk 0:01:26]}  h6 {[%clk 0:02:00]} 21. a3 {[%clk 0:01:26]}  Bf6 {[%clk 0:01:36]}
22. b4 {[%clk 0:01:20]}  Re8 {[%clk 0:01:31]} 23. Rfe1 {[%clk 0:01:12]}  Qb5 {[%clk 0:01:27]} 24. a4 {[%clk 0:01:02]}  Qc4 {[%clk 0:01:28]}
25. Be5 {[%clk 0:00:47]}  Bg5 {[%clk 0:01:21]} 26. f4 {[%clk 0:00:35]}  Bh4 {[%clk 0:01:22]} 27. Rec1 {[%clk 0:00:33]}  Qd3 {[%clk 0:01:00]}
28. Qxd3 {[%clk 0:00:33]}  Bxd3 {[%clk 0:01:01]} 29. Rc3 {[%clk 0:00:29]}  Bc4 {[%clk 0:00:58]} 30. Rb1 {[%clk 0:00:27]}  f6 {[%clk 0:00:58]}
31. Bd6 {[%clk 0:00:27]}  g5 {[%clk 0:00:27]} 32. fxg5 {[%clk 0:00:13]}  Bxg5 {[%clk 0:00:26]} 33. b5 {[%clk 0:00:09]}  axb5 {[%clk 0:00:26]}
34. axb5 {[%clk 0:00:13]}  Bd2 {[%clk 0:00:25]} 35. Rxc4 {[%clk 0:00:09]}  dxc4 {[%clk 0:00:26]} 36. b6 {[%clk 0:00:10]}  c3 {[%clk 0:00:16]}
37. b7 {[%clk 0:00:05]}  c2 {[%clk 0:00:16]} 38. Rf1 {[%clk 0:00:05]}  c1=Q {[%clk 0:00:14]} 39. Rxc1 {[%clk 0:00:06]}  Bxc1 {[%clk 0:00:16]}
40. b8=Q {[%clk 0:00:06]}  Rxb8 {[%clk 0:00:16]} 41. Bxb8 {[%clk 0:00:04]}  Be3+ {[%clk 0:00:17]} 42. Kf1 {[%clk 0:00:04]}  Bxd4 {[%clk 0:00:18]}
43. Bd6 {[%clk 0:00:05]}  Kf7 {[%clk 0:00:19]} 44. Ke2 {[%clk 0:00:06]}  e5 {[%clk 0:00:20]} 45. Kd3 {[%clk 0:00:06]}  Ke6 {[%clk 0:00:22]}
46. Ke4 {[%clk 0:00:07]}  Bf2 {[%clk 0:00:21]} 47. Bf8 {[%clk 0:00:07]}  Bg1 {[%clk 0:00:18]} 48. Bd6 {[%clk 0:00:08]}  Bf2 {[%clk 0:00:18]}
49. Bf8 {[%clk 0:00:09]}  Bd4 {[%clk 0:00:16]} 50. Bd6 {[%clk 0:00:09]}  Bf2 {[%clk 0:00:13]} 51. Bxe5 {[%clk 0:00:07]} 1/2-1/2

[Event "2026 Biel Blitz Open"]
[Site "Biel, CH"]
[Date "2026.07.19"]
[Round "10"]
[White "Chu, Wa Ching David"]
[Black "Rohrer, Christophe"]
[Result "0-1"]
[Board "37"]
[TimeControl "180+2"]
[WhiteFideId "6013180"]
[BlackFideId "1326546"]
[WhiteElo "1673"]
[BlackElo "2216"]
[BlackTitle "FM"]
[WhiteClock "0:00:03"]
[BlackClock "0:00:39"]
[Variant "Standard"]
[EndDate "2026.07.19"]
[EndTime "15:01:47"]

1. d4 {[%clk 0:03:02]}  Nf6 {[%clk 0:03:03]} 2. Bg5 {[%clk 0:03:03]}  c5 {[%clk 0:03:04]} 3. Bxf6 {[%clk 0:02:59]}  gxf6 {[%clk 0:03:05]}
4. dxc5 {[%clk 0:02:59]}  Qa5+ {[%clk 0:03:04]} 5. Nc3 {[%clk 0:02:54]}  Qxc5 {[%clk 0:03:04]} 6. e3 {[%clk 0:02:56]}  Nc6 {[%clk 0:03:01]}
7. Nf3 {[%clk 0:02:49]}  e6 {[%clk 0:02:54]} 8. a3 {[%clk 0:02:45]}  d5 {[%clk 0:02:52]} 9. Nb5 {[%clk 0:02:36]}  Qb6 {[%clk 0:02:48]}
10. Rb1 {[%clk 0:02:31]}  a6 {[%clk 0:02:47]} 11. Nc3 {[%clk 0:02:26]}  Bd7 {[%clk 0:02:47]} 12. g3 {[%clk 0:02:11]}  Be7 {[%clk 0:02:42]}
13. Bg2 {[%clk 0:02:12]}  f5 {[%clk 0:02:36]} 14. Nd4 {[%clk 0:02:03]}  Ne5 {[%clk 0:02:28]} 15. O-O {[%clk 0:01:52]}  h5 {[%clk 0:02:21]}
16. h4 {[%clk 0:01:49]}  Rc8 {[%clk 0:02:16]} 17. Nf3 {[%clk 0:01:45]}  Ng4 {[%clk 0:02:13]} 18. Qd4 {[%clk 0:01:43]}  Qxd4 {[%clk 0:02:11]}
19. exd4 {[%clk 0:01:39]}  Bd6 {[%clk 0:01:40]} 20. Rfe1 {[%clk 0:01:39]}  Kf8 {[%clk 0:01:38]} 21. Bh3 {[%clk 0:01:33]}  Rg8 {[%clk 0:01:34]}
22. Bxg4 {[%clk 0:01:28]}  Rxg4 {[%clk 0:01:32]} 23. Rbd1 {[%clk 0:01:24]}  f6 {[%clk 0:01:30]} 24. Nh2 {[%clk 0:01:19]}  Rg7 {[%clk 0:01:28]}
25. Nf3 {[%clk 0:01:12]}  f4 {[%clk 0:01:24]} 26. Kf1 {[%clk 0:00:32]}  fxg3 {[%clk 0:01:25]} 27. fxg3 {[%clk 0:00:32]}  Rxg3 {[%clk 0:01:25]}
28. Kf2 {[%clk 0:00:30]}  Rg4 {[%clk 0:01:07]} 29. Rg1 {[%clk 0:00:29]}  Kf7 {[%clk 0:01:07]} 30. Rde1 {[%clk 0:00:14]}  Rcg8 {[%clk 0:01:07]}
31. Rxg4 {[%clk 0:00:08]}  hxg4 {[%clk 0:01:05]} 32. Ng1 {[%clk 0:00:10]}  Rh8 {[%clk 0:00:59]} 33. Kg2 {[%clk 0:00:04]}  Rxh4 {[%clk 0:00:59]}
34. Nge2 {[%clk 0:00:05]}  Rh2+ {[%clk 0:00:47]} 35. Kg1 {[%clk 0:00:06]}  Rh3 {[%clk 0:00:48]} 36. Kg2 {[%clk 0:00:07]}  Kg6 {[%clk 0:00:43]}
37. Rf1 {[%clk 0:00:05]}  Kg5 {[%clk 0:00:40]} 38. Nd1 {[%clk 0:00:04]}  Rh2+ {[%clk 0:00:38]} 39. Kg1 {[%clk 0:00:03]}  Rxe2 {[%clk 0:00:39]}
40. Rf2 {[%clk 0:00:03]} 0-1

[Event "2026 Biel Blitz Open"]
[Site "Biel, CH"]
[Date "2026.07.19"]
[Round "10"]
[White "Pinelli, Gian"]
[Black "Hirzel, Robin"]
[Result "1-0"]
[Board "39"]
[TimeControl "180+2"]
[WhiteFideId "1348710"]
[BlackFideId "1342320"]
[WhiteElo "1751"]
[BlackElo "2022"]
[WhiteClock "0:00:42"]
[BlackClock "0:00:09"]
[Variant "Standard"]
[EndDate "2026.07.19"]
[EndTime "15:02:40"]

1. d4 {[%clk 0:03:03]}  Nf6 {[%clk 0:03:03]} 2. c4 {[%clk 0:03:04]}  e6 {[%clk 0:03:04]} 3. Nc3 {[%clk 0:03:06]}  d5 {[%clk 0:03:06]}
4. cxd5 {[%clk 0:03:06]}  exd5 {[%clk 0:03:07]} 5. Bg5 {[%clk 0:03:07]}  Be7 {[%clk 0:03:04]} 6. e3 {[%clk 0:03:08]}  O-O {[%clk 0:03:04]}
7. Bd3 {[%clk 0:03:08]}  c6 {[%clk 0:03:06]} 8. Nge2 {[%clk 0:03:08]}  Be6 {[%clk 0:02:59]} 9. Qc2 {[%clk 0:03:08]}  h6 {[%clk 0:03:00]}
10. Bh4 {[%clk 0:03:05]}  Nbd7 {[%clk 0:03:01]} 11. Nf4 {[%clk 0:03:00]}  Rc8 {[%clk 0:02:35]} 12. Nxe6 {[%clk 0:03:01]}  fxe6 {[%clk 0:02:36]}
13. O-O {[%clk 0:03:01]}  e5 {[%clk 0:02:35]} 14. f3 {[%clk 0:02:45]}  Qc7 {[%clk 0:01:57]} 15. Bg3 {[%clk 0:02:27]}  Bd6 {[%clk 0:01:56]}
16. Rac1 {[%clk 0:02:23]}  exd4 {[%clk 0:01:54]} 17. Bxd6 {[%clk 0:02:24]}  Qxd6 {[%clk 0:01:56]} 18. exd4 {[%clk 0:02:25]}  Qf4 {[%clk 0:01:46]}
19. Ne2 {[%clk 0:02:23]}  Qd6 {[%clk 0:01:33]} 20. Rfe1 {[%clk 0:02:21]}  Rfe8 {[%clk 0:01:34]} 21. a3 {[%clk 0:02:20]}  Re3 {[%clk 0:01:29]}
22. Ng3 {[%clk 0:02:12]}  Rxe1+ {[%clk 0:01:11]} 23. Rxe1 {[%clk 0:02:13]}  Re8 {[%clk 0:01:13]} 24. Rxe8+ {[%clk 0:02:06]}  Nxe8 {[%clk 0:01:14]}
25. Qe2 {[%clk 0:01:46]}  Nef6 {[%clk 0:01:15]} 26. Nf5 {[%clk 0:01:39]}  Qf4 {[%clk 0:00:43]} 27. Ne7+ {[%clk 0:01:24]}  Kf7 {[%clk 0:00:42]}
28. Bg6+ {[%clk 0:01:07]}  Kf8 {[%clk 0:00:43]} 29. Nf5 {[%clk 0:01:08]}  Qc1+ {[%clk 0:00:31]} 30. Kf2 {[%clk 0:01:09]}  Ne4+ {[%clk 0:00:25]}
31. fxe4 {[%clk 0:01:08]}  Qf4+ {[%clk 0:00:26]} 32. Qf3 {[%clk 0:01:03]}  Qd2+ {[%clk 0:00:27]} 33. Kg3 {[%clk 0:01:03]}  Qg5+ {[%clk 0:00:23]}
34. Qg4 {[%clk 0:01:04]}  Qxg4+ {[%clk 0:00:19]} 35. Kxg4 {[%clk 0:01:05]}  Nf6+ {[%clk 0:00:21]} 36. Kf4 {[%clk 0:01:03]}  Nxe4 {[%clk 0:00:22]}
37. Ne3 {[%clk 0:00:49]}  Nd6 {[%clk 0:00:17]} 38. Ke5 {[%clk 0:00:44]}  Nb5 {[%clk 0:00:13]} 39. Nf5 {[%clk 0:00:43]}  b6 {[%clk 0:00:08]}
40. Nd6 {[%clk 0:00:44]}  Nc7 {[%clk 0:00:07]} 41. Nc8 {[%clk 0:00:45]}  Nb5 {[%clk 0:00:06]} 42. a4 {[%clk 0:00:42]}  Nc7 {[%clk 0:00:07]}
43. Nxa7 {[%clk 0:00:42]}  c5 {[%clk 0:00:08]} 44. dxc5 {[%clk 0:00:42]}  bxc5 {[%clk 0:00:09]} 45. Kd6 {[%clk 0:00:42]} 1-0

[Event "2026 Biel Blitz Open"]
[Site "Biel, CH"]
[Date "2026.07.19"]
[Round "10"]
[White "Zumbrunn, Simon"]
[Black "Osmani, Xhevdet"]
[Result "0-1"]
[Board "40"]
[TimeControl "180+2"]
[WhiteFideId "1364146"]
[BlackFideId "22104569"]
[WhiteElo "1802"]
[BlackElo "1959"]
[WhiteClock "0:00:12"]
[BlackClock "0:02:00"]
[Variant "Standard"]
[EndDate "2026.07.19"]
[EndTime "15:04:21"]

1. e4 {[%clk 0:03:03]}  c6 {[%clk 0:03:04]} 2. d4 {[%clk 0:03:04]}  d5 {[%clk 0:03:05]} 3. f3 {[%clk 0:03:06]}  e6 {[%clk 0:03:03]}
4. Nc3 {[%clk 0:03:06]}  Qc7 {[%clk 0:03:03]} 5. Nh3 {[%clk 0:02:59]}  a6 {[%clk 0:03:04]} 6. Bf4 {[%clk 0:02:59]}  Bd6 {[%clk 0:03:02]}
7. e5 {[%clk 0:02:59]}  Be7 {[%clk 0:03:04]} 8. Na4 {[%clk 0:02:39]}  b5 {[%clk 0:03:03]} 9. Nc5 {[%clk 0:02:40]}  Bxc5 {[%clk 0:03:03]}
10. dxc5 {[%clk 0:02:41]}  Ne7 {[%clk 0:03:04]} 11. Bg3 {[%clk 0:02:40]}  Ng6 {[%clk 0:03:05]} 12. f4 {[%clk 0:02:41]}  Nd7 {[%clk 0:03:05]}
13. b4 {[%clk 0:02:41]}  Bb7 {[%clk 0:03:07]} 14. Ng5 {[%clk 0:02:39]}  O-O {[%clk 0:03:06]} 15. h4 {[%clk 0:02:40]}  h6 {[%clk 0:03:07]}
16. h5 {[%clk 0:02:24]}  Ne7 {[%clk 0:03:04]} 17. Nf3 {[%clk 0:02:08]}  a5 {[%clk 0:03:05]} 18. c3 {[%clk 0:02:08]}  axb4 {[%clk 0:03:06]}
19. cxb4 {[%clk 0:02:08]}  Ra3 {[%clk 0:03:07]} 20. Bd3 {[%clk 0:02:00]}  Rfa8 {[%clk 0:03:08]} 21. O-O {[%clk 0:01:43]}  Rxa2 {[%clk 0:03:03]}
22. Rxa2 {[%clk 0:01:33]}  Rxa2 {[%clk 0:03:04]} 23. Bb1 {[%clk 0:01:34]}  Ra4 {[%clk 0:02:54]} 24. Qd3 {[%clk 0:01:25]}  Nf8 {[%clk 0:02:56]}
25. Be1 {[%clk 0:01:15]}  Bc8 {[%clk 0:02:56]} 26. g4 {[%clk 0:01:15]}  Qa7 {[%clk 0:02:57]} 27. Nh4 {[%clk 0:01:07]}  Ra3 {[%clk 0:02:57]}
28. Qe2 {[%clk 0:01:02]}  Qa4 {[%clk 0:02:48]} 29. f5 {[%clk 0:00:52]}  exf5 {[%clk 0:02:42]} 30. gxf5 {[%clk 0:00:52]}  Qb3 {[%clk 0:02:41]}
31. Rf3 {[%clk 0:00:42]}  Qa4 {[%clk 0:02:31]} 32. Bc2 {[%clk 0:00:39]}  Ra2 {[%clk 0:02:23]} 33. Rc3 {[%clk 0:00:33]}  Qxb4 {[%clk 0:02:18]}
34. f6 {[%clk 0:00:24]}  Nf5 {[%clk 0:02:14]} 35. Nxf5 {[%clk 0:00:12]}  Bxf5 {[%clk 0:02:16]} 36. fxg7 {[%clk 0:00:13]}  Ne6 {[%clk 0:02:13]}
37. Qd1 {[%clk 0:00:10]}  Qd4+ {[%clk 0:02:00]} 38. Qxd4 {[%clk 0:00:09]}  Nxd4 {[%clk 0:02:01]} 39. Bxf5 {[%clk 0:00:10]}  Nxf5 {[%clk 0:02:02]}
40. Rf3 {[%clk 0:00:09]}  Nd4 {[%clk 0:02:03]} 41. Rf4 {[%clk 0:00:10]}  Ne6 {[%clk 0:02:04]} 42. Rf1 {[%clk 0:00:10]}  d4 {[%clk 0:02:03]}
43. Bf2 {[%clk 0:00:10]}  Rc2 {[%clk 0:02:01]} 44. Rd1 {[%clk 0:00:11]}  Rxc5 {[%clk 0:02:01]} 45. Bxd4 {[%clk 0:00:11]}  Rd5 {[%clk 0:01:58]}
46. Kf2 {[%clk 0:00:10]}  Rxd4 {[%clk 0:01:59]} 47. Rc1 {[%clk 0:00:11]}  c5 {[%clk 0:01:59]} 48. Ke3 {[%clk 0:00:11]}  Kxg7 {[%clk 0:01:58]}
49. Rg1+ {[%clk 0:00:11]}  Kf8 {[%clk 0:02:00]} 50. Ra1 {[%clk 0:00:12]} 0-1

[Event "2026 Biel Blitz Open"]
[Site "Biel, CH"]
[Date "2026.07.19"]
[Round "10"]
[White "Vedant Nayudu"]
[Black "Dai, Wenzhi"]
[Result "0-1"]
[Board "41"]
[TimeControl "180+2"]
[WhiteFideId "33369780"]
[BlackFideId "8608369"]
[WhiteElo "1732"]
[BlackElo "1943"]
[WhiteClock "0:00:06"]
[BlackClock "0:00:01"]
[Variant "Standard"]
[EndDate "2026.07.19"]
[EndTime "15:07:20"]

1. e4 {[%clk 0:03:03]}  e5 {[%clk 0:03:04]} 2. Nf3 {[%clk 0:03:05]}  Nf6 {[%clk 0:03:05]} 3. Nxe5 {[%clk 0:03:04]}  d6 {[%clk 0:03:06]}
4. Nf3 {[%clk 0:03:04]}  Nxe4 {[%clk 0:03:08]} 5. Nc3 {[%clk 0:03:05]}  Nxc3 {[%clk 0:03:08]} 6. dxc3 {[%clk 0:03:06]}  Be7 {[%clk 0:03:09]}
7. Be3 {[%clk 0:03:08]}  Nd7 {[%clk 0:03:10]} 8. Qd2 {[%clk 0:02:50]}  Nf6 {[%clk 0:03:11]} 9. h3 {[%clk 0:02:42]}  O-O {[%clk 0:03:11]}
10. O-O-O {[%clk 0:02:42]}  Re8 {[%clk 0:03:11]} 11. g4 {[%clk 0:02:34]}  Be6 {[%clk 0:03:08]} 12. Rg1 {[%clk 0:02:19]}  c5 {[%clk 0:03:06]}
13. Kb1 {[%clk 0:02:20]}  a6 {[%clk 0:02:53]} 14. Ng5 {[%clk 0:01:52]}  Bd5 {[%clk 0:02:33]} 15. Bg2 {[%clk 0:01:13]}  Bxg2 {[%clk 0:02:30]}
16. Rxg2 {[%clk 0:01:14]}  b5 {[%clk 0:02:13]} 17. f4 {[%clk 0:00:47]}  Bf8 {[%clk 0:01:55]} 18. f5 {[%clk 0:00:21]}  Qe7 {[%clk 0:01:21]}
19. Bf4 {[%clk 0:00:19]}  d5 {[%clk 0:01:12]} 20. h4 {[%clk 0:00:18]}  Rad8 {[%clk 0:01:12]} 21. Nf3 {[%clk 0:00:13]}  Ne4 {[%clk 0:01:12]}
22. Qc1 {[%clk 0:00:06]}  Qb7 {[%clk 0:01:03]} 23. g5 {[%clk 0:00:07]}  b4 {[%clk 0:01:03]} 24. cxb4 {[%clk 0:00:08]}  Qxb4 {[%clk 0:01:02]}
25. c3 {[%clk 0:00:09]}  Nxc3+ {[%clk 0:00:58]} 26. Qxc3 {[%clk 0:00:07]}  Qxf4 {[%clk 0:00:58]} 27. f6 {[%clk 0:00:07]}  g6 {[%clk 0:00:54]}
28. Re1 {[%clk 0:00:06]}  Rxe1+ {[%clk 0:00:46]} 29. Nxe1 {[%clk 0:00:08]}  Qe4+ {[%clk 0:00:45]} 30. Rc2 {[%clk 0:00:05]}  d4 {[%clk 0:00:41]}
31. Qd2 {[%clk 0:00:06]}  c4 {[%clk 0:00:42]} 32. Ka1 {[%clk 0:00:05]}  d3 {[%clk 0:00:40]} 33. Rc1 {[%clk 0:00:05]}  Qxh4 {[%clk 0:00:23]}
34. a3 {[%clk 0:00:06]}  Qe4 {[%clk 0:00:21]} 35. Rd1 {[%clk 0:00:05]}  Re8 {[%clk 0:00:19]} 36. Ng2 {[%clk 0:00:04]}  Qe2 {[%clk 0:00:18]}
37. Nf4 {[%clk 0:00:06]}  Qxd2 {[%clk 0:00:19]} 38. Rxd2 {[%clk 0:00:06]}  Bd6 {[%clk 0:00:18]} 39. Nd5 {[%clk 0:00:05]}  Re2 {[%clk 0:00:19]}
40. Rd1 {[%clk 0:00:04]}  d2 {[%clk 0:00:19]} 41. Nc3 {[%clk 0:00:04]}  Re1 {[%clk 0:00:19]} 42. Kb1 {[%clk 0:00:06]}  Bf4 {[%clk 0:00:15]}
43. Kc2 {[%clk 0:00:07]}  Rxd1 {[%clk 0:00:16]} 44. Kxd1 {[%clk 0:00:04]}  Bxg5 {[%clk 0:00:16]} 45. Ne4 {[%clk 0:00:06]}  Bf4 {[%clk 0:00:14]}
46. Kc2 {[%clk 0:00:03]}  h5 {[%clk 0:00:14]} 47. Nxd2 {[%clk 0:00:03]}  Bxd2 {[%clk 0:00:11]} 48. Kxd2 {[%clk 0:00:05]}  h4 {[%clk 0:00:10]}
49. Ke2 {[%clk 0:00:06]}  g5 {[%clk 0:00:11]} 50. Kf3 {[%clk 0:00:07]}  Kf8 {[%clk 0:00:12]} 51. Kg4 {[%clk 0:00:05]}  Ke8 {[%clk 0:00:13]}
52. a4 {[%clk 0:00:05]}  a5 {[%clk 0:00:13]} 53. Kf3 {[%clk 0:00:05]}  Kd7 {[%clk 0:00:14]} 54. Kg4 {[%clk 0:00:06]}  Ke6 {[%clk 0:00:01]} 0-1

[Event "2026 Biel Blitz Open"]
[Site "Biel, CH"]
[Date "2026.07.19"]
[Round "10"]
[White "Tahari, Youcef Nazim"]
[Black "Wilhelm, Serge"]
[Result "1-0"]
[Board "43"]
[TimeControl "180+2"]
[WhiteFideId "282537"]
[BlackFideId "1305808"]
[WhiteElo "1691"]
[BlackElo "1923"]
[WhiteClock "0:01:22"]
[BlackClock "0:01:58"]
[Variant "Standard"]
[EndDate "2026.07.19"]
[EndTime "14:54:58"]

1. e4 {[%clk 0:03:03]}  c6 {[%clk 0:03:03]} 2. d4 {[%clk 0:03:04]}  d5 {[%clk 0:03:04]} 3. f3 {[%clk 0:03:04]}  e6 {[%clk 0:03:05]}
4. Nc3 {[%clk 0:03:05]}  Bb4 {[%clk 0:03:06]} 5. Bd2 {[%clk 0:03:07]}  Ne7 {[%clk 0:03:04]} 6. a3 {[%clk 0:03:06]}  Bxc3 {[%clk 0:02:54]}
7. Bxc3 {[%clk 0:03:07]}  Nd7 {[%clk 0:02:55]} 8. Bd3 {[%clk 0:03:02]}  b6 {[%clk 0:02:48]} 9. b4 {[%clk 0:02:56]}  O-O {[%clk 0:02:46]}
10. Nh3 {[%clk 0:02:48]}  Bb7 {[%clk 0:02:45]} 11. O-O {[%clk 0:02:40]}  c5 {[%clk 0:02:45]} 12. dxc5 {[%clk 0:02:37]}  bxc5 {[%clk 0:02:45]}
13. Bb2 {[%clk 0:02:11]}  cxb4 {[%clk 0:02:37]} 14. axb4 {[%clk 0:02:11]}  Qb6+ {[%clk 0:02:38]} 15. Nf2 {[%clk 0:02:04]}  Qxb4 {[%clk 0:02:33]}
16. Ba3 {[%clk 0:02:04]}  Qb6 {[%clk 0:02:25]} 17. Bxe7 {[%clk 0:02:02]}  Rfe8 {[%clk 0:02:25]} 18. Ba3 {[%clk 0:01:51]}  Nf6 {[%clk 0:02:18]}
19. Kh1 {[%clk 0:01:51]}  Rad8 {[%clk 0:02:13]} 20. e5 {[%clk 0:01:41]}  Nd7 {[%clk 0:02:12]} 21. f4 {[%clk 0:01:40]}  Rc8 {[%clk 0:02:07]}
22. Qh5 {[%clk 0:01:33]}  g6 {[%clk 0:02:08]} 23. Qh6 {[%clk 0:01:29]}  Nc5 {[%clk 0:01:59]} 24. Ng4 {[%clk 0:01:21]}  Nd7 {[%clk 0:01:58]}
25. Nf6+ {[%clk 0:01:22]} 1-0

[Event "2026 Biel Blitz Open"]
[Site "Biel, CH"]
[Date "2026.07.19"]
[Round "10"]
[White "Berezovskii, Arina"]
[Black "Trubini, Timon"]
[Result "0-1"]
[Board "45"]
[TimeControl "180+2"]
[WhiteFideId "34449850"]
[BlackFideId "1347799"]
[WhiteElo "1851"]
[BlackElo "1788"]
[WhiteTitle "WCM"]
[WhiteClock "0:00:09"]
[BlackClock "0:00:03"]
[Variant "Standard"]
[EndDate "2026.07.19"]
[EndTime "15:07:42"]

1. e4 {[%clk 0:03:02]}  c5 {[%clk 0:03:02]} 2. Nf3 {[%clk 0:03:01]}  d6 {[%clk 0:03:04]} 3. c3 {[%clk 0:03:01]}  Nf6 {[%clk 0:03:04]}
4. h3 {[%clk 0:03:01]}  Nc6 {[%clk 0:03:04]} 5. Bd3 {[%clk 0:03:02]}  g5 {[%clk 0:03:04]} 6. Bc2 {[%clk 0:03:00]}  g4 {[%clk 0:03:05]}
7. hxg4 {[%clk 0:02:54]}  Bxg4 {[%clk 0:03:06]} 8. d4 {[%clk 0:02:43]}  cxd4 {[%clk 0:03:07]} 9. cxd4 {[%clk 0:02:44]}  Bxf3 {[%clk 0:02:44]}
10. gxf3 {[%clk 0:02:43]}  Rg8 {[%clk 0:02:38]} 11. Nc3 {[%clk 0:02:34]}  Rc8 {[%clk 0:02:35]} 12. Be3 {[%clk 0:02:30]}  Qb6 {[%clk 0:02:17]}
13. d5 {[%clk 0:02:05]}  Qxb2 {[%clk 0:02:17]} 14. Na4 {[%clk 0:02:05]}  Qb4+ {[%clk 0:01:38]} 15. Bd2 {[%clk 0:02:05]}  Qd4 {[%clk 0:01:17]}
16. dxc6 {[%clk 0:01:47]}  b5 {[%clk 0:01:12]} 17. Nc3 {[%clk 0:01:33]}  Rxc6 {[%clk 0:01:08]} 18. Rb1 {[%clk 0:01:02]}  Rg2 {[%clk 0:00:55]}
19. Rf1 {[%clk 0:00:52]}  Rxc3 {[%clk 0:00:52]} 20. Bxc3 {[%clk 0:00:53]}  Qxc3+ {[%clk 0:00:53]} 21. Qd2 {[%clk 0:00:49]}  Qc5 {[%clk 0:00:45]}
22. a4 {[%clk 0:00:43]}  a6 {[%clk 0:00:40]} 23. axb5 {[%clk 0:00:42]}  axb5 {[%clk 0:00:41]} 24. Qd3 {[%clk 0:00:39]}  Nd7 {[%clk 0:00:36]}
25. Rxb5 {[%clk 0:00:36]}  Qa7 {[%clk 0:00:34]} 26. Qc3 {[%clk 0:00:25]}  e6 {[%clk 0:00:24]} 27. Qc8+ {[%clk 0:00:24]}  Ke7 {[%clk 0:00:24]}
28. Rb7 {[%clk 0:00:14]}  Qa1+ {[%clk 0:00:22]} 29. Ke2 {[%clk 0:00:11]}  Qa6+ {[%clk 0:00:22]} 30. Ke1 {[%clk 0:00:09]}  Qa5+ {[%clk 0:00:21]}
31. Kd1 {[%clk 0:00:07]}  Qa1+ {[%clk 0:00:21]} 32. Bb1 {[%clk 0:00:04]}  Qd4+ {[%clk 0:00:20]} 33. Ke1 {[%clk 0:00:04]}  Qa4 {[%clk 0:00:19]}
34. Qc1 {[%clk 0:00:03]}  Qa5+ {[%clk 0:00:17]} 35. Qd2 {[%clk 0:00:03]}  Qa6 {[%clk 0:00:18]} 36. Rb2 {[%clk 0:00:03]}  Nc5 {[%clk 0:00:16]}
37. Rc2 {[%clk 0:00:04]}  Bh6 {[%clk 0:00:15]} 38. Qd1 {[%clk 0:00:03]}  Nd3+ {[%clk 0:00:15]} 39. Ke2 {[%clk 0:00:03]}  Nf4+ {[%clk 0:00:16]}
40. Ke3 {[%clk 0:00:03]}  Nd5+ {[%clk 0:00:13]} 41. Kd4 {[%clk 0:00:03]}  Qb6+ {[%clk 0:00:10]} 42. Kd3 {[%clk 0:00:04]}  Qb5+ {[%clk 0:00:09]}
43. Kd4 {[%clk 0:00:03]}  e5# {[%clk 0:00:09]} 0-1

[Event "2026 Biel Blitz Open"]
[Site "Biel, CH"]
[Date "2026.07.19"]
[Round "10"]
[White "Kutonov, Yehor"]
[Black "Amsellem, Daniel"]
[Result "1-0"]
[Board "46"]
[TimeControl "180+2"]
[WhiteFideId "1364804"]
[BlackFideId "1363522"]
[WhiteElo "1805"]
[BlackElo "1723"]
[WhiteClock "0:00:15"]
[BlackClock "0:00:15"]
[Variant "Standard"]
[EndDate "2026.07.19"]
[EndTime "14:58:37"]

1. d4 {[%clk 0:03:02]}  Nf6 {[%clk 0:03:03]} 2. c4 {[%clk 0:03:03]}  e6 {[%clk 0:03:03]} 3. Nf3 {[%clk 0:03:04]}  d5 {[%clk 0:03:04]}
4. Nc3 {[%clk 0:03:05]}  c5 {[%clk 0:03:05]} 5. cxd5 {[%clk 0:03:05]}  Nxd5 {[%clk 0:03:06]} 6. e4 {[%clk 0:03:02]}  Nxc3 {[%clk 0:03:05]}
7. bxc3 {[%clk 0:03:03]}  cxd4 {[%clk 0:03:05]} 8. cxd4 {[%clk 0:03:04]}  Bb4+ {[%clk 0:03:06]} 9. Bd2 {[%clk 0:03:00]}  Bxd2+ {[%clk 0:03:06]}
10. Qxd2 {[%clk 0:03:00]}  O-O {[%clk 0:03:03]} 11. Bc4 {[%clk 0:02:52]}  Nd7 {[%clk 0:02:52]} 12. O-O {[%clk 0:02:45]}  Nf6 {[%clk 0:02:52]}
13. e5 {[%clk 0:02:30]}  Nd5 {[%clk 0:02:51]} 14. Bd3 {[%clk 0:02:22]}  g6 {[%clk 0:02:48]} 15. Qh6 {[%clk 0:02:10]}  f6 {[%clk 0:02:23]}
16. exf6 {[%clk 0:02:05]}  Qxf6 {[%clk 0:02:12]} 17. Ng5 {[%clk 0:01:37]}  Qg7 {[%clk 0:01:52]} 18. Qxg7+ {[%clk 0:01:20]}  Kxg7 {[%clk 0:01:53]}
19. Rfe1 {[%clk 0:01:16]}  Nf4 {[%clk 0:01:31]} 20. Bc4 {[%clk 0:01:08]}  Rf6 {[%clk 0:01:14]} 21. g3 {[%clk 0:00:56]}  Nd5 {[%clk 0:00:58]}
22. Bxd5 {[%clk 0:00:57]}  exd5 {[%clk 0:00:59]} 23. Re7+ {[%clk 0:00:58]}  Kh6 {[%clk 0:00:57]} 24. f4 {[%clk 0:00:47]}  Kh5 {[%clk 0:00:34]}
25. Rxh7+ {[%clk 0:00:40]}  Kg4 {[%clk 0:00:35]} 26. Kg2 {[%clk 0:00:37]}  Rb6 {[%clk 0:00:28]} 27. Rf1 {[%clk 0:00:28]}  Rb2+ {[%clk 0:00:26]}
28. Rf2 {[%clk 0:00:29]}  Rxf2+ {[%clk 0:00:21]} 29. Kxf2 {[%clk 0:00:31]}  b6 {[%clk 0:00:16]} 30. Nf7 {[%clk 0:00:24]}  Ba6 {[%clk 0:00:10]}
31. Ne5+ {[%clk 0:00:20]}  Kf5 {[%clk 0:00:10]} 32. Ke3 {[%clk 0:00:20]}  Rc8 {[%clk 0:00:08]} 33. Kd2 {[%clk 0:00:15]}  Ke4 {[%clk 0:00:00]}
34. Re7 {[%clk 0:00:15]}  Rh8 {[%clk 0:00:00]} 35. Nxg6+ {[%clk 0:00:15]} 1-0